[Event "FIDE WYCC Open U14 2023"]
[Site "Montesilvano"]
[Date "2023.11.23"]
[Round "10.4"]
[White "Daaevik Wadhawan"]
[Black "Perossa, Nicolas"]
[Result "0-1"]
[ECO "C02"]
[WhiteElo "1810"]
[BlackElo "2330"]
[Annotator "RC"]
[PlyCount "124"]
[EventDate "2023.11.13"]
[EventType "swiss"]
[EventCountry "ITA"]
[SourceTitle "playchess.com"]
[Source "ChessBase"]
[SourceQuality "1"]
[TimeControl "40/5400+30:1800+30"]

1. e4 e6 {[%emt 0:04:21]} 2. d4 {[%emt 0:00:38]} d5 {[%emt 0:00:06]} 3. e5 {[%emt 0:00:01]} c5 {[%emt 0:00:10]} 4. c3 {[%emt 0:00:01]} Qb6 {[%emt 0:00:11]} 5. Nf3 {[%emt 0:00:08]} Nc6 {[%emt 0:00:06]} 6. a3 {[%emt 0:00:10]} Nh6 {[%emt 0:00:51]} 7. Bd3 {[%emt 0:04:23]} cxd4 {[%emt 0:00:10]} 8. cxd4 {[%emt 0:01:49]} Nf5 {[%emt 0:00:07]} 9. Bxf5 {[%emt 0:03:07]} exf5 {[%emt 0:00:03]} 10. Nc3 {[%emt 0:01:33]} Be6 {[%emt 0:00:09]} 11. O-O {[%emt 0:02:26]} Be7 {[%emt 0:00:08]} 12. b4 {[%emt 0:07:36]} Rc8 {[%emt 0:04:10]} 13. Be3 {[%emt 0:04:51]} Qd8 {[%emt 0:02:06]} 14. Qd2 {[%emt 0:04:44]} h6 {[%emt 0:07:54]} 15. Ne1 {[%emt 0:07:34]} Nxb4 {[%emt 0:23:02]} 16. axb4 {[%emt 0:03:20]} Bxb4 {[%emt 0:00:02]} 17. Rxa7 {[%emt 0:02:58]} Bxc3 {[%emt 0:09:02]} 18. Qa2 {[%emt 0:01:53]} O-O {[%emt 0:22:18]} 19. Rxb7 {[%emt 0:05:09]} Qh4 {[%emt 0:02:47]} 20. Nf3 {[%emt 0:21:12]} Qe4 {[%emt 0:02:17]} 21. Bd2 {[%emt 0:01:20]} Bxd2 {[%emt 0:00:57]} 22. Qxd2 {[%emt 0:00:47]} Rc2 {[%emt 0:01:06]} 23. Qb4 {[%emt 0:06:17]} Qe2 {[%emt 0:01:11]} 24. Qb5 {[%emt 0:01:57]} Rc4 {[%emt 0:07:30]} 25. Rb8 {[%emt 0:04:25]} Rxb8 {[%emt 0:00:07]} 26. Qxb8+ {[%emt 0:00:01]} Rc8 {[%emt 0:00:09]} 27. Qb1 {[%emt 0:01:40]} Rc2 {[%emt 0:00:14]} 28. Qd1 {[%emt 0:02:30]} Qc4 {[%emt 0:00:21]} 29. h3 {[%emt 0:03:05]} g5 {[%emt 0:05:13]} 30. Qa1 {[%emt 0:07:05]} g4 {[%emt 0:00:30]} 31. hxg4 {[%emt 0:01:18]} fxg4 {[%emt 0:00:02]} 32. Nh4 {[%emt 0:00:08]} Rd2 {[%emt 0:04:32]} 33. Rd1 {[%emt 0:00:46]} Ra2 {[%emt 0:00:22]} 34. Qb1 {[%emt 0:00:22]} Qe2 {[%emt 0:02:11]} 35. Rf1 {[%emt 0:00:03]} Rb2 {[%emt 0:01:29]} 36. Qa1 {[%emt 0:02:01]} Kg7 {[%emt 0:00:16]} 37. Qa3 {[%emt 0:00:30]} Qd2 {[%emt 0:00:48]} 38. Qa7 {[%emt 0:00:27]} Ra2 {[%emt 0:00:36]} 39. Qb6 {[%emt 0:00:44]} Ra4 {[%emt 0:01:38]} 40. g3 {[%emt 0:00:00]} Qxd4 {[%emt 0:00:00]} 41. Nf5+ {[%emt 0:01:39]} Bxf5 {[%emt 0:00:45]} 42. Qf6+ {[%emt 0:00:01]} Kg8 {[%emt 0:00:23]} 43. Qxf5 {[%emt 0:01:32]} Qb6 {[%emt 0:24:10]} 44. Qd7 {[%emt 0:16:29]} Rd4 {[%emt 0:01:20]} 45. Rc1 {[%emt 0:05:21]} Qg6 {[%emt 0:01:19]} 46. Qa7 {[%emt 0:01:52]} Rd3 {[%emt 0:01:58]} 47. Qe7 {[%emt 0:02:21]} Qe6 {[%emt 0:00:53]} 48. Qd8+ {[%emt 0:01:11]} Kg7 {[%emt 0:01:29]} 49. Rc8 {[%emt 0:00:52]} Kg6 {[%emt 0:00:20]} 50. Qg8+ {[%emt 0:03:16]} Kh5 {[%emt 0:00:36]} 51. Qd8 {[%emt 0:00:48]} Rd4 {[%emt 0:02:17]} 52. Qh4+ {[%emt 0:01:20]} Kg6 {[%emt 0:00:01]} 53. Qd8 Qf5 {[%emt 0:01:22]} 54. Qg8+ {[%emt 0:01:17]} Kh5 {[%emt 0:00:06]} 55. Rc1 {[%emt 0:00:08]} Rd2 {[%emt 0:00:27]} 56. Rf1 {[%emt 0:00:19]} Re2 {[%emt 0:00:43]} 57. Qg7 {[%emt 0:01:01]} Rxe5 {[%emt 0:00:56]} 58. Rd1 {[%emt 0:00:04]} d4 {[%emt 0:00:35]} 59. f3 {[%emt 0:00:59]} gxf3 {[%emt 0:00:26]} 60. Qh8 {[%emt 0:00:26]} f2+ {[%emt 0:00:24]} 61. Kh2 {[%emt 0:00:32]} Re1 {[%emt 0:00:35]} 62. Rxd4 {[%emt 0:00:24]} Rh1+ {[%emt 0:00:10]} 0-1

[Event "FIDE WYCC Open U14 2023"]
[Site "Montesilvano"]
[Date "2023.11.23"]
[Round "10.5"]
[White "Cieslak, Patryk"]
[Black "Katsanis, Vasileios Dim"]
[Result "1-0"]
[ECO "B12"]
[WhiteElo "2284"]
[BlackElo "2173"]
[Annotator "RC"]
[PlyCount "69"]
[EventDate "2023.11.13"]
[EventType "swiss"]
[EventCountry "ITA"]
[SourceTitle "playchess.com"]
[Source "ChessBase"]
[SourceQuality "1"]
[TimeControl "40/5400+30:1800+30"]

1. e4 c6 2. d4 d5 3. e5 Bf5 4. Nf3 e6 5. Be2 Nd7 6. O-O Be7 7. a4 h5 8. a5 {[%emt 0:03:51]} a6 {[%emt 0:02:03]} 9. c4 {[%emt 0:03:39]} dxc4 {[%emt 0:03:59]} 10. Nbd2 {[%emt 0:02:52]} Nh6 {[%emt 0:03:24]} 11. Nxc4 {[%emt 0:00:17]} h4 {[%emt 0:11:19]} 12. Bd2 {[%emt 0:04:37]} h3 {[%emt 0:07:32]} 13. g3 {[%emt 0:01:04]} Bg4 {[%emt 0:19:29]} 14. Bc3 {[%emt 0:03:51]} Nf5 {[%emt 0:03:55]} 15. Nfd2 {[%emt 0:03:59]} Bxe2 {[%emt 0:00:20]} 16. Qxe2 {[%emt 0:00:01]} b5 {[%emt 0:17:33]} 17. axb6 {[%emt 0:00:53]} Nxb6 {[%emt 0:00:04]} 18. Nxb6 {[%emt 0:09:23]} Qxb6 {[%emt 0:00:02]} 19. Qe4 {[%emt 0:04:23]} O-O {[%emt 0:06:20]} 20. Nf3 {[%emt 0:02:42]} c5 {[%emt 0:03:25]} 21. dxc5 {[%emt 0:07:33]} Qxc5 {[%emt 0:01:51]} 22. g4 {[%emt 0:06:46]} Nh4 {[%emt 0:02:57]} 23. Nxh4 {[%emt 0:02:02]} Bxh4 {[%emt 0:00:03]} 24. Bb4 {[%emt 0:01:00]} Qb5 {[%emt 0:02:07]} 25. Bxf8 {[%emt 0:02:02]} Rxf8 {[%emt 0:00:02]} 26. Ra3 {[%emt 0:01:01]} Qxb2 {[%emt 0:01:26]} 27. Rxh3 {[%emt 0:01:15]} g5 {[%emt 0:00:03]} 28. Rf3 {[%emt 0:03:01]} Rd8 {[%emt 0:00:52]} 29. Rb1 {[%emt 0:02:59]} Qd2 {[%emt 0:01:22]} 30. Rb7 {[%emt 0:05:05]} Rd7 {[%emt 0:02:03]} 31. Rxd7 {[%emt 0:01:14]} Qxd7 {[%emt 0:00:03]} 32. Qd3 {[%emt 0:01:08]} Qc7 {[%emt 0:00:54]} 33. Qd6 {[%emt 0:00:24]} Qa5 {[%emt 0:00:04]} 34. Qe7 {[%emt 0:00:36]} Bxf2+ {[%emt 0:01:24]} 35. Kg2 {[%emt 0:00:06]} 1-0

[Event "FIDE WYCC Open U14 2023"]
[Site "Montesilvano"]
[Date "2023.11.23"]
[Round "10.6"]
[White "Prokhorov, Aleksey"]
[Black "Dhruva Thota"]
[Result "1/2-1/2"]
[ECO "B23"]
[WhiteElo "1869"]
[BlackElo "2192"]
[Annotator "RC"]
[PlyCount "81"]
[EventDate "2023.11.13"]
[EventType "swiss"]
[EventCountry "ITA"]
[SourceTitle "playchess.com"]
[Source "ChessBase"]
[SourceQuality "1"]
[TimeControl "40/5400+30:1800+30"]

1. e4 {[%emt 0:01:31]} c5 {[%emt 0:00:14]} 2. Nc3 {[%emt 0:00:28]} g6 {[%emt 0:00:38]} 3. g3 {[%emt 0:01:05]} d6 {[%emt 0:00:11]} 4. Bg2 {[%emt 0:00:55]} Nc6 {[%emt 0:00:26]} 5. f4 {[%emt 0:01:01]} Bg7 {[%emt 0:00:07]} 6. Nf3 {[%emt 0:01:03]} e6 {[%emt 0:00:07]} 7. O-O {[%emt 0:00:59]} Nge7 {[%emt 0:00:06]} 8. d3 {[%emt 0:00:57]} O-O {[%emt 0:00:42]} 9. Be3 {[%emt 0:01:00]} Rb8 {[%emt 0:00:37]} 10. a4 {[%emt 0:01:01]} a6 {[%emt 0:01:24]} 11. Qd2 {[%emt 0:01:00]} b5 {[%emt 0:01:14]} 12. axb5 {[%emt 0:01:19]} axb5 {[%emt 0:00:04]} 13. e5 {[%emt 0:06:17]} Nf5 {[%emt 0:11:57]} 14. Bf2 {[%emt 0:01:21]} dxe5 {[%emt 0:08:36]} 15. Bxc5 {[%emt 0:01:29]} exf4 {[%emt 0:03:16]} 16. Bxf8 {[%emt 0:08:34]} Bxf8 {[%emt 0:00:37]} 17. Qxf4 {[%emt 0:01:15]} Bh6 {[%emt 0:01:56]} 18. Qe4 {[%emt 0:10:02]} Bb7 {[%emt 0:01:10]} 19. Qe2 {[%emt 0:00:18]} Ne3 {[%emt 0:06:00]} 20. Ne4 {[%emt 0:01:10]} Nxf1 {[%emt 0:02:06]} 21. Rxf1 {[%emt 0:00:58]} Nd4 {[%emt 0:01:57]} 22. Nxd4 {[%emt 0:01:06]} Qxd4+ {[%emt 0:03:40]} 23. Kh1 {[%emt 0:01:00]} Bxe4 {[%emt 0:14:02]} 24. Qxe4 {[%emt 0:00:33]} Qxe4 {[%emt 0:02:30]} 25. Bxe4 {[%emt 0:00:54]} f5 {[%emt 0:04:20]} 26. Bg2 {[%emt 0:01:11]} Bg7 {[%emt 0:00:45]} 27. Ra1 {[%emt 0:02:40]} Bxb2 {[%emt 0:00:37]} 28. Ra8 {[%emt 0:00:20]} Rxa8 {[%emt 0:00:29]} 29. Bxa8 {[%emt 0:00:15]} Kg7 {[%emt 0:00:56]} 30. Kg2 {[%emt 0:00:32]} Kf6 {[%emt 0:00:49]} 31. Kf3 {[%emt 0:00:36]} Bd4 {[%emt 0:00:24]} 32. Bc6 {[%emt 0:00:33]} b4 {[%emt 0:00:06]} 33. h3 {[%emt 0:00:25]} Ke5 {[%emt 0:07:58]} 34. Bd7 {[%emt 0:02:41]} Bc3 {[%emt 0:03:08]} 35. Bc8 {[%emt 0:04:13]} Be1 {[%emt 0:01:10]} 36. Bd7 {[%emt 0:00:43]} Kd5 {[%emt 0:01:56]} 37. Bc8 {[%emt 0:00:53]} Bd2 {[%emt 0:03:13]} 38. Bd7 {[%emt 0:04:03]} e5 {[%emt 0:00:41]} 39. g4 {[%emt 0:02:02]} fxg4+ {[%emt 0:02:19]} 40. Bxg4 {[%emt 0:00:00]} Kd4 {[%emt 0:00:00]} 41. Be6 {[%emt 0:00:15]} 1/2-1/2

[Event "FIDE WYCC Open U14 2023"]
[Site "Montesilvano"]
[Date "2023.11.23"]
[Round "10.7"]
[White "Uskov, Artem"]
[Black "Warchol, Kamil"]
[Result "1-0"]
[ECO "A20"]
[WhiteElo "2380"]
[BlackElo "2095"]
[Annotator "ChessBase"]
[PlyCount "69"]
[EventDate "2023.11.13"]
[EventType "swiss"]
[EventCountry "ITA"]
[SourceTitle "playchess.com"]
[Source "ChessBase"]
[SourceQuality "1"]
[TimeControl "40/5400+30:1800+30"]

1. c4 {[%emt 0:01:50]} e5 {[%emt 0:00:36]} 2. g3 {[%emt 0:00:07]} Nf6 {[%emt 0:00:41]} 3. Bg2 {[%emt 0:00:33]} c6 {[%emt 0:00:14]} 4. Nf3 {[%emt 0:00:10]} e4 {[%emt 0:03:11]} 5. Nd4 {[%emt 0:00:34]} Qb6 {[%emt 0:03:58]} 6. Nb3 {[%emt 0:00:13]} a5 {[%emt 0:02:33]} 7. d3 {[%emt 0:00:44]} a4 {[%emt 0:02:26]} 8. N3d2 {[%emt 0:00:04]} Bc5 {[%emt 0:09:28]} 9. O-O {[%emt 0:01:36]} exd3 {[%emt 0:11:16]} 10. exd3 {[%emt 0:02:13]} O-O {[%emt 0:00:46]} 11. Nc3 {[%emt 0:00:33]} a3 {[%emt 0:07:51]} 12. Rb1 {[%emt 0:02:12]} axb2 {[%emt 0:03:02]} 13. Bxb2 {[%emt 0:00:11]} Qa7 {[%emt 0:01:45]} 14. Nb3 {[%emt 0:03:02]} d6 {[%emt 0:11:50]} 15. Ne4 {[%emt 0:03:43]} Nxe4 {[%emt 0:01:26]} 16. Bxe4 {[%emt 0:00:03]} f5 {[%emt 0:03:03]} 17. Bg2 {[%emt 0:00:03]} Nd7 {[%emt 0:03:37]} 18. a4 {[%emt 0:10:51]} Nf6 {[%emt 0:04:16]} 19. a5 {[%emt 0:02:48]} Bb4 {[%emt 0:04:31]} 20. a6 {[%emt 0:03:21]} bxa6 {[%emt 0:04:25]} 21. Nd4 {[%emt 0:00:22]} Bd7 {[%emt 0:02:37]} 22. Nxc6 {[%emt 0:01:03]} Bxc6 {[%emt 0:01:04]} 23. Bxc6 {[%emt 0:00:04]} Rab8 {[%emt 0:01:00]} 24. Qa4 {[%emt 0:06:17]} Bc5 {[%emt 0:01:47]} 25. Bxf6 {[%emt 0:01:19]} gxf6 {[%emt 0:07:50]} 26. Kg2 {[%emt 0:00:57]} Rb6 {[%emt 0:03:29]} 27. Bd5+ {[%emt 0:00:30]} Kh8 {[%emt 0:00:43]} 28. Rxb6 {[%emt 0:00:34]} Bxb6 {[%emt 0:00:22]} 29. Rb1 {[%emt 0:00:13]} Qc7 {[%emt 0:02:31]} 30. Qxa6 {[%emt 0:00:40]} Rb8 {[%emt 0:00:12]} 31. Qa1 {[%emt 0:01:15]} Kg7 {[%emt 0:00:34]} 32. Re1 {[%emt 0:00:10]} Qc5 {[%emt 0:02:02]} 33. Re7+ {[%emt 0:00:11]} Kg6 {[%emt 0:00:07]} 34. Bf7+ {[%emt 0:00:12]} Kg7 {[%emt 0:00:33]} 35. Bh5+ {[%emt 0:00:19]} 1-0

[Event "FIDE WYCC Open U14 2023"]
[Site "Montesilvano"]
[Date "2023.11.23"]
[Round "10.8"]
[White "Hobson, Kenneth"]
[Black "Arca, Christian Gian Karlo"]
[Result "1/2-1/2"]
[ECO "B10"]
[WhiteElo "2142"]
[BlackElo "2347"]
[Annotator "RC"]
[PlyCount "119"]
[EventDate "2023.11.13"]
[EventType "swiss"]
[EventCountry "ITA"]
[SourceTitle "playchess.com"]
[Source "ChessBase"]
[SourceQuality "1"]
[TimeControl "40/5400+30:1800+30"]

1. e4 {[%emt 0:00:01]} c6 {[%emt 0:00:06]} 2. Nf3 {[%emt 0:00:21]} d5 {[%emt 0:00:04]} 3. exd5 {[%emt 0:00:13]} cxd5 {[%emt 0:00:10]} 4. Ne5 {[%emt 0:00:12]} Nc6 {[%emt 0:00:17]} 5. d4 {[%emt 0:00:41]} Nf6 {[%emt 0:01:18]} 6. Bb5 {[%emt 0:00:57]} Bd7 {[%emt 0:00:26]} 7. Bxc6 {[%emt 0:01:06]} Bxc6 {[%emt 0:01:09]} 8. O-O {[%emt 0:00:30]} e6 {[%emt 0:00:03]} 9. Re1 {[%emt 0:02:17]} Be7 {[%emt 0:00:11]} 10. c3 {[%emt 0:01:21]} O-O {[%emt 0:00:08]} 11. Bf4 {[%emt 0:01:03]} Qb6 {[%emt 0:01:28]} 12. Qb3 {[%emt 0:06:29]} Qa6 {[%emt 0:06:02]} 13. a4 {[%emt 0:03:10]} Rfc8 {[%emt 0:01:07]} 14. Nd2 {[%emt 0:03:08]} b6 {[%emt 0:04:41]} 15. h3 {[%emt 0:03:45]} Be8 {[%emt 0:02:50]} 16. Bh2 {[%emt 0:09:55]} Qb7 {[%emt 0:02:16]} 17. a5 {[%emt 0:05:12]} b5 {[%emt 0:01:13]} 18. Nd3 {[%emt 0:02:19]} a6 {[%emt 0:00:43]} 19. Qc2 Ne4 {[%emt 0:03:13]} 20. f3 {[%emt 0:14:11]} Nxd2 {[%emt 0:03:49]} 21. Qxd2 {[%emt 0:01:29]} b4 {[%emt 0:00:10]} 22. Nxb4 {[%emt 0:02:27]} Bxb4 {[%emt 0:07:38]} 23. cxb4 {[%emt 0:00:02]} Qe7 {[%emt 0:00:07]} 24. Rac1 {[%emt 0:02:09]} Rc4 {[%emt 0:00:07]} 25. Rxc4 {[%emt 0:01:03]} dxc4 {[%emt 0:00:01]} 26. d5 {[%emt 0:02:38]} Qa7+ {[%emt 0:00:08]} 27. Kh1 {[%emt 0:01:55]} Rd8 {[%emt 0:00:06]} 28. d6 {[%emt 0:02:07]} Bc6 {[%emt 0:00:04]} 29. Qg5 {[%emt 0:06:48]} f6 {[%emt 0:00:17]} 30. Qc5 {[%emt 0:01:11]} Qxc5 {[%emt 0:00:04]} 31. bxc5 {[%emt 0:00:03]} e5 {[%emt 0:02:30]} 32. f4 {[%emt 0:05:46]} e4 {[%emt 0:01:03]} 33. Bg1 {[%emt 0:01:29]} Rb8 {[%emt 0:00:30]} 34. Bd4 {[%emt 0:00:33]} Kf7 {[%emt 0:00:47]} 35. f5 {[%emt 0:03:26]} Rb5 {[%emt 0:02:17]} 36. Rc1 {[%emt 0:02:47]} Rb3 {[%emt 0:12:17]} 37. Rxc4 {[%emt 0:05:13]} Rd3 {[%emt 0:03:57]} 38. Bc3 {[%emt 0:09:04]} e3 {[%emt 0:00:42]} 39. d7 {[%emt 0:00:52]} e2 {[%emt 0:08:22]} 40. Kh2 {[%emt 0:00:00]} Ke7 {[%emt 0:00:00]} 41. Bb4 {[%emt 0:04:11]} Rd1 {[%emt 0:11:11]} 42. Rg4 {[%emt 0:02:49]} e1=Q {[%emt 0:00:39]} 43. Bxe1 {[%emt 0:00:33]} Rxe1 {[%emt 0:00:09]} 44. Rxg7+ {[%emt 0:00:07]} Kd8 {[%emt 0:00:22]} 45. Rxh7 {[%emt 0:00:49]} Re2 {[%emt 0:00:16]} 46. Rg7 {[%emt 0:00:45]} Rxb2 {[%emt 0:05:42]} 47. Kg1 {[%emt 0:01:09]} Rb1+ {[%emt 0:30:15]} 48. Kh2 {[%emt 0:02:10]} Rb2 {[%emt 0:12:23]} 49. Kg1 {[%emt 0:00:24]} Rb1+ {[%emt 0:00:27]} 50. Kh2 {[%emt 0:00:08]} Rb2 {[%emt 0:00:04]} 51. Kg1 {[%emt 0:00:14]} Rb1+ {[%emt 0:09:09]} 52. Kh2 {[%emt 0:00:09]} Bxd7 {[%emt 0:01:13]} 53. Rf7 {[%emt 0:04:54]} Rf1 {[%emt 0:01:11]} 54. Rxf6 {[%emt 0:00:22]} Rxf5 {[%emt 0:00:01]} 55. Rxf5 {[%emt 0:01:12]} Bxf5 {[%emt 0:00:01]} 56. Kg3 {[%emt 0:00:23]} Be4 {[%emt 0:00:17]} 57. Kf4 {[%emt 0:01:17]} Bxg2 {[%emt 0:00:11]} 58. h4 {[%emt 0:00:48]} Kd7 {[%emt 0:00:29]} 59. Ke5 {[%emt 0:00:12]} Kc6 {[%emt 0:00:10]} 60. h5 {[%emt 0:00:38]} 1/2-1/2

[Event "FIDE WYCC Open U14 2023"]
[Site "Montesilvano"]
[Date "2023.11.23"]
[Round "10.9"]
[White "Daakshin Arun"]
[Black "Bolat, Inayat"]
[Result "1-0"]
[ECO "E48"]
[WhiteElo "2342"]
[BlackElo "2088"]
[Annotator "RC"]
[PlyCount "97"]
[EventDate "2023.11.13"]
[EventType "swiss"]
[EventCountry "ITA"]
[SourceTitle "playchess.com"]
[Source "ChessBase"]
[SourceQuality "1"]
[TimeControl "40/5400+30:1800+30"]

1. d4 {[%emt 0:03:55]} Nf6 {[%emt 0:00:11]} 2. c4 {[%emt 0:00:06]} e6 {[%emt 0:00:29]} 3. Nc3 {[%emt 0:00:13]} Bb4 {[%emt 0:00:05]} 4. e3 {[%emt 0:00:05]} O-O {[%emt 0:00:05]} 5. Bd3 {[%emt 0:00:07]} d5 {[%emt 0:00:18]} 6. cxd5 {[%emt 0:00:04]} exd5 {[%emt 0:00:13]} 7. a3 {[%emt 0:00:05]} Bd6 {[%emt 0:05:31]} 8. Qc2 {[%emt 0:00:46]} c5 {[%emt 0:06:54]} 9. Nb5 {[%emt 0:10:21]} c4 {[%emt 0:01:48]} 10. Nxd6 {[%emt 0:02:30]} cxd3 {[%emt 0:04:02]} 11. Qxc8 {[%emt 0:00:45]} Qxc8 {[%emt 0:00:51]} 12. Nxc8 {[%emt 0:00:08]} Rxc8 {[%emt 0:00:02]} 13. Nh3 {[%emt 0:07:23]} Ne4 {[%emt 0:04:14]} 14. Bd2 {[%emt 0:13:18]} Rc2 {[%emt 0:01:23]} 15. Rc1 {[%emt 0:00:55]} Nd7 {[%emt 0:20:05]} 16. Rxc2 {[%emt 0:02:35]} dxc2 {[%emt 0:00:04]} 17. Ke2 {[%emt 0:08:36]} Nb6 {[%emt 0:02:00]} 18. b3 {[%emt 0:01:42]} Rc8 {[%emt 0:00:51]} 19. Rc1 {[%emt 0:06:11]} f5 {[%emt 0:24:45]} 20. f3 {[%emt 0:05:45]} Nxd2 {[%emt 0:08:00]} 21. Kxd2 {[%emt 0:00:55]} h6 {[%emt 0:03:17]} 22. Nf4 g5 {[%emt 0:01:19]} 23. Nd3 {[%emt 0:02:49]} Kg7 {[%emt 0:00:28]} 24. Rxc2 {[%emt 0:04:58]} Rxc2+ {[%emt 0:00:13]} 25. Kxc2 {[%emt 0:00:04]} Nc8 {[%emt 0:00:14]} 26. Nc5 {[%emt 0:00:33]} b6 {[%emt 0:00:53]} 27. Ne6+ {[%emt 0:00:21]} Kf6 {[%emt 0:00:29]} 28. Nc7 {[%emt 0:00:07]} Ne7 {[%emt 0:00:06]} 29. g4 {[%emt 0:06:15]} f4 {[%emt 0:03:27]} 30. e4 {[%emt 0:01:25]} dxe4 {[%emt 0:00:05]} 31. fxe4 {[%emt 0:00:02]} Ng6 {[%emt 0:00:20]} 32. Kd3 {[%emt 0:00:55]} Nh4 {[%emt 0:02:08]} 33. e5+ {[%emt 0:00:55]} Ke7 {[%emt 0:00:23]} 34. Ke4 {[%emt 0:03:40]} Ng2 {[%emt 0:00:48]} 35. Nd5+ {[%emt 0:02:48]} Kf7 {[%emt 0:02:13]} 36. Nf6 {[%emt 0:02:54]} Ne1 {[%emt 0:01:00]} 37. Kd5 {[%emt 0:04:28]} f3 {[%emt 0:01:16]} 38. Ne4 {[%emt 0:00:14]} Ke7 {[%emt 0:01:01]} 39. Nf2 {[%emt 0:01:26]} Nc2 {[%emt 0:01:36]} 40. Ke4 {[%emt 0:00:00]} Nxa3 {[%emt 0:00:00]} 41. Kxf3 {[%emt 0:04:26]} a5 {[%emt 0:05:31]} 42. Ke4 {[%emt 0:03:20]} Nc2 {[%emt 0:01:08]} 43. Nd3 {[%emt 0:13:25]} Na1 {[%emt 0:02:00]} 44. Nc1 {[%emt 0:01:10]} b5 {[%emt 0:06:42]} 45. d5 {[%emt 0:00:54]} a4 {[%emt 0:01:00]} 46. bxa4 {[%emt 0:00:10]} bxa4 {[%emt 0:00:01]} 47. Kd3 {[%emt 0:00:17]} a3 {[%emt 0:00:58]} 48. Kc3 {[%emt 0:00:17]} Kd7 {[%emt 0:01:19]} 49. Nb3 {[%emt 0:00:14]} 1-0

[Event "FIDE WYCC Open U14 2023"]
[Site "Montesilvano"]
[Date "2023.11.23"]
[Round "10.10"]
[White "Kuziev, Miraziz"]
[Black "Dotzer, Lukas"]
[Result "1/2-1/2"]
[ECO "E46"]
[WhiteElo "2053"]
[BlackElo "2339"]
[Annotator "RC"]
[PlyCount "60"]
[EventDate "2023.11.13"]
[EventType "swiss"]
[EventCountry "ITA"]
[SourceTitle "playchess.com"]
[Source "ChessBase"]
[SourceQuality "1"]
[TimeControl "40/5400+30:1800+30"]

1. d4 {[%emt 0:02:39]} Nf6 {[%emt 0:00:02]} 2. c4 {[%emt 0:00:08]} e6 {[%emt 0:00:07]} 3. Nc3 {[%emt 0:00:04]} Bb4 {[%emt 0:00:10]} 4. e3 {[%emt 0:00:06]} O-O {[%emt 0:00:09]} 5. Bd2 {[%emt 0:00:14]} d5 {[%emt 0:00:17]} 6. Nf3 {[%emt 0:00:07]} b6 {[%emt 0:01:48]} 7. cxd5 {[%emt 0:00:05]} exd5 {[%emt 0:00:23]} 8. Rc1 {[%emt 0:00:05]} Be7 {[%emt 0:02:43]} 9. Ne5 {[%emt 0:04:01]} c5 {[%emt 0:02:11]} 10. Bd3 {[%emt 0:00:18]} Bb7 {[%emt 0:00:53]} 11. O-O {[%emt 0:00:53]} Nc6 {[%emt 0:01:02]} 12. Be1 {[%emt 0:00:08]} Nxe5 {[%emt 0:15:23]} 13. dxe5 {[%emt 0:00:05]} Ne4 {[%emt 0:01:39]} 14. f3 {[%emt 0:11:55]} Ng5 {[%emt 0:06:39]} 15. Bf2 {[%emt 0:21:29]} Rc8 {[%emt 0:08:33]} 16. f4 {[%emt 0:09:44]} d4 {[%emt 0:06:47]} 17. exd4 {[%emt 0:11:50]} cxd4 {[%emt 0:00:33]} 18. Bf5 {[%emt 0:00:03]} dxc3 {[%emt 0:17:15]} 19. Bxc8 {[%emt 0:00:31]} Bxc8 {[%emt 0:10:08]} 20. fxg5 {[%emt 0:01:30]} cxb2 {[%emt 0:03:45]} 21. Rb1 {[%emt 0:00:20]} Qxd1 {[%emt 0:07:40]} 22. Rfxd1 {[%emt 0:00:05]} Ba3 {[%emt 0:00:47]} 23. Bd4 {[%emt 0:01:18]} Bf5 {[%emt 0:02:34]} 24. Rxb2 {[%emt 0:01:16]} Bxb2 {[%emt 0:00:13]} 25. Bxb2 {[%emt 0:00:06]} Rc8 {[%emt 0:00:42]} 26. Rd2 {[%emt 0:01:05]} h6 {[%emt 0:03:55]} 27. gxh6 {[%emt 0:00:11]} gxh6 {[%emt 0:00:49]} 28. Ba3 {[%emt 0:00:04]} Rc2 {[%emt 0:04:04]} 29. Rxc2 {[%emt 0:00:14]} Bxc2 {[%emt 0:00:09]} 30. Bd6 {[%emt 0:00:01]} Kg7 {[%emt 0:00:36]} 1/2-1/2

[Event "FIDE WYCC Open U14 2023"]
[Site "Montesilvano"]
[Date "2023.11.23"]
[Round "10.11"]
[White "Coicev, Matei-Andrei"]
[Black "Kozlovic, Jernej"]
[Result "1/2-1/2"]
[ECO "C47"]
[WhiteElo "2006"]
[BlackElo "2263"]
[Annotator "RC"]
[PlyCount "106"]
[EventDate "2023.11.13"]
[EventType "swiss"]
[EventCountry "ITA"]
[SourceTitle "playchess.com"]
[Source "ChessBase"]
[SourceQuality "1"]
[TimeControl "40/5400+30:1800+30"]

1. e4 {[%emt 0:00:08]} e5 {[%emt 0:00:16]} 2. Nf3 {[%emt 0:00:07]} Nc6 {[%emt 0:00:29]} 3. Nc3 {[%emt 0:00:26]} Nf6 {[%emt 0:01:24]} 4. d4 {[%emt 0:00:25]} exd4 {[%emt 0:00:21]} 5. Nxd4 {[%emt 0:00:07]} Bb4 {[%emt 0:01:59]} 6. Nxc6 {[%emt 0:00:13]} bxc6 {[%emt 0:01:50]} 7. Bd3 {[%emt 0:00:25]} d5 {[%emt 0:01:49]} 8. Bd2 {[%emt 0:01:32]} Bxc3 {[%emt 0:01:30]} 9. Bxc3 {[%emt 0:00:06]} dxe4 {[%emt 0:00:48]} 10. Bxf6 {[%emt 0:00:16]} Qxf6 {[%emt 0:01:38]} 11. Bxe4 {[%emt 0:01:38]} Ba6 {[%emt 0:01:59]} 12. Bd3 {[%emt 0:03:11]} Bxd3 {[%emt 0:13:39]} 13. cxd3 {[%emt 0:05:13]} Qxb2 {[%emt 0:03:17]} 14. O-O {[%emt 0:00:57]} O-O {[%emt 0:00:17]} 15. Qf3 {[%emt 0:02:26]} Rad8 {[%emt 0:19:55]} 16. Qxc6 {[%emt 0:01:14]} Rxd3 {[%emt 0:02:18]} 17. Qxc7 {[%emt 0:00:53]} Rfd8 {[%emt 0:19:28]} 18. h3 {[%emt 0:07:09]} R3d7 {[%emt 0:07:22]} 19. Qa5 {[%emt 0:02:41]} Qd2 {[%emt 0:01:38]} 20. Qa6 {[%emt 0:03:08]} Qd3 {[%emt 0:01:31]} 21. Qa5 {[%emt 0:01:36]} Qd5 {[%emt 0:01:28]} 22. Qa6 {[%emt 0:03:48]} Qe6 {[%emt 0:04:15]} 23. Qa5 {[%emt 0:02:27]} Qd5 {[%emt 0:00:28]} 24. Qa6 {[%emt 0:00:14]} Qd3 {[%emt 0:01:51]} 25. Qa5 {[%emt 0:00:25]} Qd2 {[%emt 0:00:14]} 26. Qa6 {[%emt 0:00:17]} Re8 {[%emt 0:06:03]} 27. Qa4 {[%emt 0:05:57]} Qd4 {[%emt 0:00:20]} 28. Qb3 {[%emt 0:00:49]} Red8 {[%emt 0:02:05]} 29. Rae1 {[%emt 0:00:47]} g6 {[%emt 0:00:25]} 30. Re3 {[%emt 0:00:39]} Qd5 {[%emt 0:01:50]} 31. Rfe1 {[%emt 0:00:24]} Qxb3 {[%emt 0:00:22]} 32. axb3 {[%emt 0:01:03]} Kf8 {[%emt 0:00:51]} 33. Ra1 {[%emt 0:00:55]} Rb8 {[%emt 0:01:46]} 34. Kf1 {[%emt 0:00:45]} Rb6 {[%emt 0:00:30]} 35. Rc3 {[%emt 0:03:36]} Ke7 {[%emt 0:00:49]} 36. Ke2 {[%emt 0:08:46]} Rbd6 {[%emt 0:00:58]} 37. Ra2 {[%emt 0:00:31]} Kd8 {[%emt 0:00:16]} 38. g3 {[%emt 0:02:42]} a6 {[%emt 0:00:22]} 39. Rac2 {[%emt 0:02:32]} h5 {[%emt 0:00:29]} 40. h4 {[%emt 0:00:00]} Re7+ {[%emt 0:00:00]} 41. Re3 {[%emt 0:05:57]} Red7 {[%emt 0:01:04]} 42. Rec3 {[%emt 0:00:54]} Ke7 {[%emt 0:09:08]} 43. Re3+ {[%emt 0:01:06]} Kf6 {[%emt 0:02:59]} 44. Rf3+ {[%emt 0:01:50]} Ke6 {[%emt 0:00:37]} 45. Re3+ {[%emt 0:00:22]} Kf5 {[%emt 0:00:31]} 46. Kf3 {[%emt 0:01:49]} f6 {[%emt 0:07:22]} 47. Rc5+ {[%emt 0:01:36]} Rd5 {[%emt 0:00:01]} 48. Rec3 {[%emt 0:04:26]} g5 {[%emt 0:03:48]} 49. hxg5 {[%emt 0:03:12]} fxg5 {[%emt 0:00:25]} 50. Rxd5+ {[%emt 0:01:23]} Rxd5 {[%emt 0:00:00]} 51. b4 {[%emt 0:04:56]} g4+ {[%emt 0:03:56]} 52. Kg2 {[%emt 0:01:51]} Rb5 {[%emt 0:03:17]} 53. Rc6 {[%emt 0:00:20]} Rxb4 1/2-1/2